bitfinex-derivatives/quotes_SOLF0:USTF0_20240905
["timestamp","ask_amount","ask_price","bid_price","bid_amount"]
[1725555523804,3.8428,130.12,130.09,3.89371964]
[1725555524103,3.8428,130.12,130.09,0.05031964]
[1725555524803,6.7594866,130.15,130.09,0.05031964]
[1725555524994,2.8224,130.15,130.09,0.05031964]
[1725555525199,3.8422,130.14,130.12,3.8426]
[1725555525401,3.8422,130.14,130.12,3.89907858]
[1725555525700,25.84,130.2,130.13,3.8424]
[1725555525896,0.59783526,130.19,130.15,0.0568222]
[1725555526400,0.59783526,130.19,130.15,3.8986222]
[1725555526708,0.59783526,130.19,130.15,0.0568222]
[1725555527095,0.59783526,130.19,130.16,3.8414]
[1725555527096,4.43873526,130.19,130.16,3.8414]
[1725555527296,3.8409,130.19,130.16,3.8414]
[1725555527496,2.6969,130.2,130.15,3.94242637]
[1725555527693,2.6969,130.2,130.15,0.0568222]
[1725555527895,1.3027,130.2,130.15,0.0568222]
[1725555528201,1.3027,130.2,130.15,3.85554138]
[1725555528398,3.8409,130.19,130.15,3.8985222]
[1725555528595,3.8409,130.19,130.15,0.0568222]
[1725555528994,3.8409,130.19,130.15,3.97851169]
[1725555529804,3.8409,130.19,130.15,3.8986222]
[1725555529998,3.8409,130.19,130.15,7.81416243]
[1725555530500,1.3027,130.2,130.15,0.0568222]
[1725555530903,3.8416,130.16,130.15,0.0568222]
[1725555531206,7.65144985,130.16,130.15,0.0568222]
[1725555531798,3.8416,130.16,130.15,0.0568222]
[1725555533001,1.3509,130.19,130.15,0.0568222]
[1725555533600,27.1909,130.19,130.15,0.0568222]
[1725555533798,0.59653487,130.18,130.15,0.0568222]
[1725555534101,4.46586872,130.18,130.15,0.0568222]
[1725555534301,3.8416,130.16,130.15,0.0568222]
[1725555534696,3.86933385,130.18,130.09,5.2566911]
[1725555534900,3.8422,130.15,130.09,5.2566911]
[1725555535107,3.88223012,130.16,130.09,5.2566911]
[1725555535301,27.1909,130.19,130.09,5.2566911]
[1725555535603,0.05691262,130.15,130.13,0.04912774]
[1725555536001,0.05691262,130.15,130.14,3.8422]
[1725555537506,5.21995304,130.22,130.17,3.8411]
[1725555537705,0.59655447,130.21,130.17,3.8411]
[1725555537903,0.59655447,130.21,130.13,1.422]
[1725555538109,0.59655447,130.21,130.16,3.8414]
[1725555538415,0.59655447,130.21,130.16,3.77766023]
[1725555538608,3.8405,130.2,130.17,0.05229864]
[1725555538814,3.8405,130.2,130.17,3.89349864]
[1725555539009,5.26762078,130.22,130.17,0.05229864]
[1725555539308,3.841,130.18,130.17,0.05229864]
[1725555540702,3.8408,130.19,130.17,0.05229864]
[1725555540905,1.3689,130.21,130.17,0.05229864]
[1725555541109,25.84,130.25,130.17,0.05229864]
[1725555541304,2.03350362,130.24,130.2,0.05837797]
[1725555541512,3.8403,130.21,130.2,0.05837797]
[1725555541810,7.73102946,130.21,130.2,0.05837797]
[1725555542010,4.43641254,130.21,130.2,0.05837797]
[1725555543708,4.43661563,130.21,130.2,0.05837797]
[1725555543902,3.8403,130.21,130.2,0.05837797]
[1725555544109,4.43661684,130.21,130.2,0.05837797]
[1725555544309,3.8409,130.19,130.13,25.84]
[1725555544508,3.79619914,130.22,130.13,25.84]
[1725555544708,0.59625783,130.21,130.13,25.84]
[1725555544907,27.2772,130.24,130.15,25.84]
[1725555545114,0.5961513,130.23,130.16,3.89717725]
[1725555545311,3.8405,130.2,130.18,0.0547411]
[1725555546507,3.8407,130.19,130.18,0.0547411]
[1725555547313,3.8405,130.2,130.18,0.0547411]
[1725555547511,0.05341123,130.21,130.18,0.0547411]
[1725555547711,0.64971531,130.21,130.18,0.0547411]
[1725555548314,0.59628424,130.2,130.18,0.0547411]
[1725555548617,3.8405,130.2,130.18,0.0547411]
[1725555549605,3.8407,130.19,130.18,0.0547411]
[1725555550019,4.43667228,130.19,130.18,0.0547411]
[1725555552216,3.8405,130.2,130.18,0.0547411]
[1725555552620,3.89361123,130.21,130.18,0.0547411]
[1725555552815,0.59573319,130.2,130.18,0.0547411]
[1725555553118,3.89361123,130.21,130.18,3.8956411]
[1725555553618,4.4359482,130.2,130.18,0.0547411]
[1725555553814,0.05341123,130.21,130.18,0.0547411]
[1725555554014,4.48904148,130.21,130.18,0.0547411]
[1725555554317,3.89361123,130.21,130.18,3.8955411]
[1725555554511,0.59539041,130.2,130.18,0.0547411]
[1725555555018,3.89361123,130.21,130.18,0.0547411]
[1725555555213,3.89361123,130.21,130.18,3.8956411]
[1725555555813,3.8404,130.2,130.18,3.8956411]
[1725555556725,0.05341123,130.21,130.18,0.0547411]
[1725555557119,3.89361123,130.21,130.18,3.8955411]
[1725555557319,0.05341123,130.21,130.18,0.0547411]
[1725555557910,0.64900577,130.21,130.18,0.0547411]
[1725555558115,0.64900577,130.21,130.19,3.8406]
[1725555560616,0.64900577,130.21,130.18,0.0547411]
[1725555560933,0.59559454,130.2,130.18,0.0547411]
[1725555561219,3.89361123,130.21,130.18,3.8956411]
[1725555561419,0.59574147,130.2,130.18,3.8956411]
[1725555561620,0.59574147,130.2,130.18,0.0547411]
[1725555561818,0.05341123,130.21,130.18,0.0547411]
[1725555562018,0.64915068,130.21,130.18,0.0547411]
[1725555562219,3.8405,130.2,130.18,0.0547411]
[1725555562418,0.59578282,130.19,130.18,0.0547411]
[1725555562617,0.59578282,130.19,130.18,3.8955411]
[1725555562820,0.59578282,130.2,130.18,3.8955411]
[1725555563021,0.05341123,130.21,130.18,0.0547411]
[1725555563214,0.64926996,130.21,130.18,0.0547411]
[1725555563412,0.05341123,130.21,130.18,0.0547411]
[1725555563814,0.05341123,130.21,130.2,3.8404]
[1725555570729,0.05341123,130.21,130.19,3.8405]
[1725555571138,0.05341123,130.21,130.18,0.0547411]
[1725555571433,0.05341123,130.21,130.2,3.8404]
[1725555571841,0.05341123,130.21,130.19,3.8405]
[1725555572241,0.05341123,130.21,130.18,0.0547411]
[1725555573735,0.05341123,130.21,130.2,3.8404]
[1725555581360,0.05341123,130.21,130.19,3.8405]
[1725555581740,0.05341123,130.21,130.18,3.8955411]
[1725555582447,0.64918085,130.21,130.18,0.0547411]
[1725555582950,20.66,130.2,130.1,2.698]
[1725555583144,20.66,130.16,130.05,1.4273]
[1725555583343,20.66,130.16,130.05,22.0873]
[1725555583344,2.8023,130.15,130.05,22.0873]
[1725555583545,20.66,130.14,130.05,1.4273]
[1725555583951,3.89298046,130.11,130.08,3.90098073]
[1725555584255,3.89298046,130.11,130.08,0.05708073]
[1725555584256,0.04998046,130.11,130.08,0.05708073]
[1725555584647,0.04998046,130.11,130.08,3.90098073]
[1725555585046,0.04998046,130.11,130.09,3.8435]
[1725555585247,0.04998046,130.11,130.08,0.05708073]
[1725555585747,0.04998046,130.11,130.09,3.8436]
[1725555586353,0.04998046,130.11,130.08,3.90088073]
[1725555586653,0.04998046,130.11,130.08,0.05708073]
[1725555587149,0.04998046,130.11,130.09,3.8436]
[1725555587348,0.04998046,130.11,130.08,0.05708073]
[1725555587550,0.04998046,130.11,130.09,3.8434]
[1725555588755,0.04998046,130.11,130.1,3.8433]
[1725555594949,0.04998046,130.11,130.1,7.66874978]
[1725555600152,0.04998046,130.11,130.1,3.8433]
[1725555603857,3.77594268,130.17,130.15,3.8417]
[1725555604059,0.59618301,130.16,130.15,3.80631631]
[1725555604263,10.4565051,130.21,130.13,20.66]
[1725555604657,3.8408,130.19,130.13,20.66]
[1725555604959,0.05690358,130.17,130.15,0.05184659]
[1725555605968,0.05690358,130.17,130.15,3.89354659]
[1725555606162,0.65305528,130.17,130.15,3.89354659]
[1725555607958,0.05690358,130.17,130.15,3.89354659]
[1725555608863,3.89820358,130.17,130.15,3.89354659]
[1725555609063,0.05690358,130.17,130.16,3.8416]
[1725555609262,0.05690358,130.17,130.15,0.05184659]
[1725555609864,0.05690358,130.17,130.15,3.89354659]
[1725555610061,3.89820358,130.17,130.15,0.05184659]
[1725555610863,3.8416,130.16,130.15,0.05184659]
[1725555611562,3.8421,130.15,130.12,3.8425]
[1725555611960,3.8423,130.14,130.11,3.8429]
[1725555612166,20.66,130.16,130.11,3.8429]
[1725555612463,1.38178383,130.15,130.12,0.05727828]
[1725555612662,20.66,130.14,130.05,1.4265]
[1725555612962,20.66,130.14,130.05,5.19110639]
[1725555612963,20.66,130.13,130.05,5.19110639]
[1725555613169,3.8432,130.11,130.08,3.8438]
[1725555613365,7.77039864,130.11,130.08,3.8438]
[1725555613666,7.82588725,130.11,130.08,3.89914589]
[1725555616160,3.98268725,130.11,130.08,0.05534589]
[1725555616456,0.05548861,130.11,130.08,20.71534589]
[1725555616867,0.05548861,130.11,130.1,3.8433]
[1725555617665,0.05548861,130.11,130.08,0.05534589]
[1725555618065,0.05548861,130.11,130.1,3.8433]
[1725555618563,0.05548861,130.11,130.09,20.66]
[1725555618564,3.8418,130.16,130.13,3.8423]
[1725555618969,1.3034,130.17,130.13,3.8423]
[1725555619359,3.8416,130.16,130.13,3.8423]
[1725555619666,3.89880643,130.16,130.13,3.8942456]
[1725555619867,20.66,130.15,130.13,0.0519456]
[1725555620161,3.8422,130.14,130.13,0.0519456]
[1725555620471,7.67830086,130.14,130.13,0.0519456]
[1725555620666,7.67830086,130.14,130.06,3.93603936]
[1725555620667,3.83610086,130.14,130.06,3.93603936]
[1725555620968,20.66,130.13,130.05,1.4265]
[1725555621159,3.8433,130.11,130.05,5.25376014]
[1725555621362,20.66,130.13,130.07,3.8441]
[1725555621759,0.05674802,130.11,130.09,0.05695605]
[1725555622466,3.8433,130.1,130.09,0.05695605]
[1725555622770,0.05674802,130.11,130.09,0.05695605]
[1725555623669,20.71674802,130.11,129.97,7.6942]
[1725555623859,24.57764072,130.11,130.0,20.66]
[1725555624060,20.66,130.09,130.0,20.66]
[1725555624261,3.8446,130.06,130.03,3.8452]
[1725555624561,7.59998295,130.06,130.03,3.8452]
[1725555624765,3.80839945,130.06,130.03,3.90159738]
[1725555624962,0.0530165,130.06,130.03,0.05649738]
[1725555625465,0.0530165,130.06,130.04,3.845]
[1725555625865,0.0530165,130.06,130.05,3.8448]
[1725555626366,3.82278051,130.11,130.08,3.8437]
[1725555626562,1.3553,130.13,130.05,20.66]
[1725555626962,5.28808305,130.13,130.07,3.8441]
[1725555627164,1.3553,130.13,130.07,3.8441]
[1725555627365,3.8436,130.1,130.09,0.04895771]
[1725555628870,3.8445,130.06,129.99,20.66]
[1725555629172,5.29154467,130.13,129.98,118.67798519]
[1725555629173,20.66,130.09,129.98,118.67798519]
[1725555629471,3.8448,130.06,129.99,20.66]
[1725555629671,7.64113406,130.06,129.99,20.66]
[1725555629869,0.04975649,130.04,130.01,20.71385411]
[1725555630076,20.66,130.12,130.03,20.66]
[1725555630372,5.29154467,130.13,130.03,20.66]
[1725555630573,3.8432,130.11,130.04,1.354]
[1725555630775,5.29154467,130.13,130.05,20.66]
[1725555630972,0.04930773,130.1,130.09,3.8436]
[1725555631568,0.04930773,130.1,130.08,3.89873732]
[1725555631975,0.04930773,130.1,130.08,0.05493732]
[1725555632274,0.04930773,130.1,130.09,3.8436]
[1725555633269,0.04930773,130.1,130.08,3.89873732]
[1725555634881,0.04930773,130.1,130.08,0.05493732]
[1725555635383,3.8436,130.09,130.08,0.05493732]
[1725555638376,3.8443,130.07,130.04,3.8449]
[1725555638878,24.47970352,130.09,130.03,3.8453]
[1725555639087,20.66,130.07,129.99,2.8441]
[1725555639281,0.05211693,130.04,130.02,0.05747528]
[1725555639474,3.8456,130.03,130.02,0.0507993]
[1725555639983,3.8456,130.03,129.92,1.3008]
[1725555639984,20.66,130.03,129.93,22.0917]
[1725555640181,20.66,130.01,129.93,25.99025149]
[1725555640784,0.05472987,129.98,129.96,3.90128335]
[1725555641281,0.05472987,129.98,129.97,3.8472]
[1725555641482,0.05472987,129.98,129.96,0.05398335]
[1725555642879,3.8472,129.97,129.96,0.05398335]
[1725555643681,20.66,129.97,129.84,2.675]
[1725555643876,20.66,129.94,129.85,21.9742]
[1725555644080,3.8375404,129.93,129.89,3.8494]
[1725555644286,3.8487,129.92,129.89,3.8494]
[1725555644590,20.66,129.94,129.87,3.89025704]
[1725555644780,20.66,129.94,129.9,3.8492]
[1725555644781,0.05026956,129.92,129.9,3.8492]
[1725555644977,0.05026956,129.92,129.89,0.05803278]
[1725555645182,20.66,129.91,129.89,0.05803278]
[1725555645382,24.52916864,129.91,129.89,0.05803278]
[1725555645581,3.86916864,129.91,129.89,0.05803278]
[1725555645782,7.71826864,129.91,129.89,0.05803278]
[1725555646288,0.05026956,129.92,129.89,0.05803278]
[1725555646886,0.05026956,129.92,129.89,3.90743278]
[1725555647198,0.05026956,129.92,129.89,0.05803278]
[1725555647386,0.05026956,129.92,129.89,3.90743278]
[1725555648586,0.05026956,129.92,129.89,0.05803278]
[1725555648983,0.05026956,129.92,129.89,3.90743278]
[1725555649182,0.05026956,129.92,129.89,0.05803278]
[1725555650389,3.8491,129.91,129.89,0.05803278]
[1725555650789,20.66,129.91,129.89,0.05803278]
[1725555651192,3.8493,129.9,129.89,0.05803278]
[1725555652188,24.5091,129.91,129.89,0.05803278]
[1725555652391,20.66,129.91,129.89,0.05803278]
[1725555653192,24.5091,129.91,129.89,0.05803278]
[1725555653996,3.8493,129.9,129.89,0.05803278]
[1725555654392,20.66,129.91,129.89,0.05803278]
[1725555654598,3.8491,129.91,129.89,0.05803278]
[1725555659597,3.8493,129.9,129.89,0.05803278]
[1725555660405,24.5093,129.9,129.89,0.05803278]
[1725555660800,3.8491,129.91,129.89,0.05803278]
[1725555660992,0.05026956,129.92,129.89,0.05803278]
[1725555661396,0.05026956,129.92,129.91,3.849]
[1725555663505,20.66,130.0,129.91,3.91243002]
[1725555663699,20.66,130.0,129.86,7.7007]
[1725555663700,20.66,130.02,129.92,23.37]
[1725555663905,3.8465,130.0,129.92,23.37]
[1725555664100,20.66,130.0,129.92,23.37]
[1725555664304,3.8476,129.96,129.92,2.71]
[1725555664521,0.05187309,129.95,129.93,0.05079433]
[1725555665103,0.05187309,129.95,129.93,3.89899433]
[1725555665907,3.89967309,129.95,129.93,0.05079433]
[1725555666102,20.71187309,129.95,129.93,0.05079433]
[1725555666610,0.05187309,129.95,129.93,0.05079433]
[1725555667404,0.05187309,129.95,129.94,3.8481]
[1725555667805,3.8465,130.0,129.97,3.8471]
[1725555668109,20.66,130.01,129.91,24.42153683]
[1725555668314,20.66,130.01,129.91,20.66]
[1725555668807,0.05255569,129.97,129.95,0.05553944]
[1725555669011,0.05255569,129.97,129.96,3.8475]
[1725555669613,3.8459,130.02,129.99,3.8463]
[1725555670111,23.4124,130.03,129.98,3.8467]
[1725555670316,20.66,130.01,129.92,1.3708]
[1725555670610,3.8467,129.99,129.96,3.8472]
[1725555670812,0.04920876,129.98,129.96,3.8472]
[1725555671012,0.04920876,129.98,129.95,0.05686659]
[1725555671413,0.04920876,129.98,129.97,3.8472]
[1725555672206,22.0942,130.03,130.0,3.8463]
[1725555672410,22.0942,130.03,129.94,20.66]
[1725555672411,24.9183,130.07,129.98,20.66]
[1725555672607,22.0655,130.07,129.98,20.66]
[1725555672811,20.66,130.07,129.99,2.7927]
[1725555673024,20.66,130.07,130.0,3.85515342]
[1725555673216,20.66,130.07,129.99,2.7927]
[1725555673407,0.0488831,130.05,130.04,3.8451]
[1725555673612,0.0488831,130.05,130.02,0.0515778]
[1725555673810,0.0488831,130.05,130.02,3.8970778]
[1725555674813,3.8938831,130.05,130.02,3.8970778]
[1725555675114,0.0488831,130.05,130.04,3.8451]
[1725555678524,0.0488831,130.05,130.02,0.0515778]
[1725555679620,0.0488831,130.05,130.04,3.8451]
[1725555679809,0.0488831,130.05,130.02,0.0515778]
[1725555680415,3.8937831,130.05,130.02,3.8971778]
[1725555681918,0.0488831,130.05,130.03,3.8454]
[1725555683217,0.0488831,130.05,130.04,3.8451]
[1725555684216,4.1751,130.11,130.02,20.66]
[1725555684217,2.8367,130.11,130.02,20.66]
[1725555684420,0.59727525,130.1,130.07,3.8439]
[1725555684614,4.44077525,130.1,130.07,3.8439]
[1725555684823,4.44077525,130.1,130.05,3.8446]
[1725555684824,20.66,130.1,130.05,3.8446]
[1725555685023,20.66,130.1,130.0,24.43211128]
[1725555685418,0.05238124,130.06,130.05,3.8446]
[1725555685618,3.8441,130.08,130.05,3.8446]
[1725555685619,0.05710416,130.07,130.05,3.8446]
[1725555686021,0.05710416,130.07,130.06,3.8445]
[1725555687319,1.301,130.15,130.09,3.8435]
[1725555687527,21.25722372,130.14,130.09,3.8435]
[1725555687721,4.36202913,130.13,130.09,3.8436]
[1725555687916,4.43970949,130.12,130.05,2.814]
[1725555688114,20.66,130.14,130.05,2.814]
[1725555688320,3.86773139,130.11,130.08,3.90140842]
[1725555688518,7.65368739,130.11,130.08,3.90140842]
[1725555688822,3.8436,130.09,130.08,0.05760842]
[1725555689924,3.8435,130.1,130.08,0.05760842]
[1725555690520,24.45317463,130.11,130.08,0.05760842]
[1725555691521,24.5036,130.09,130.08,0.05760842]
[1725555691922,3.8436,130.09,130.08,0.05760842]
[1725555692419,3.8447,130.06,130.03,3.8453]
[1725555692818,20.66,130.07,130.01,6.71863463]
[1725555693019,24.5044,130.07,130.04,3.845]
[1725555693431,20.71018192,130.07,130.04,0.05175383]
[1725555693621,3.8447,130.06,130.04,0.05175383]
[1725555693818,0.05018192,130.07,130.04,0.05175383]
[1725555694427,3.89448192,130.07,130.04,3.89675383]
[1725555695833,3.8446,130.06,130.04,0.05175383]
[1725555696626,3.89448192,130.07,130.04,3.89665383]
[1725555697022,0.05018192,130.07,130.04,0.05175383]
[1725555697628,0.05018192,130.07,130.06,3.8445]
[1725555702241,5.29027141,130.13,130.09,3.8435]
[1725555702634,3.8428,130.12,130.09,3.8435]
[1725555702836,5.29027141,130.13,130.09,3.8435]
[1725555703049,5.29027141,130.13,130.04,20.66]
[1725555703248,0.03195789,130.1,130.07,0.05685559]
[1725555704344,0.03195789,130.1,130.09,3.8436]
[1725555705748,0.03195789,130.1,130.09,7.72211161]
[1725555706149,0.59778934,130.14,130.08,20.66]
[1725555706350,0.59778934,130.14,130.07,9.0896]
[1725555706351,20.66,130.2,130.11,20.66]
[1725555706551,0.59767103,130.19,130.11,20.66]
[1725555706747,3.8412,130.18,130.15,3.8417]
[1725555707247,3.91404628,130.18,130.15,3.89389126]
[1725555707448,20.66,130.16,130.1,1.3254]
[1725555707647,24.47525332,130.15,130.1,1.3254]
[1725555707846,20.66,130.15,130.09,1.391]
[1725555708049,20.66,130.15,130.07,1.4013]
[1725555708050,3.84139309,130.14,130.07,1.4013]
[1725555708255,20.66,130.15,130.08,3.7821942]
[1725555708451,0.05007885,130.13,130.1,0.05791332]
[1725555708755,3.90866456,130.2,130.12,20.66]
[1725555708948,3.8403,130.21,130.18,3.8409]
[1725555709146,3.84985008,130.2,130.14,3.74990389]
[1725555709342,20.66,130.21,130.13,1.3556]
[1725555709547,24.5011,130.18,130.15,3.8417]
[1725555709848,24.5011,130.18,130.15,3.89358957]
[1725555709849,28.31056552,130.18,130.15,3.89358957]
[1725555710651,24.5011,130.18,130.15,3.89358957]
[1725555710850,3.8407,130.19,130.16,3.8415]
[1725555711351,25.88569614,130.2,130.15,3.89358957]
[1725555711557,25.88569614,130.2,130.15,0.05188957]
[1725555711956,25.88569614,130.2,130.16,3.8413]
[1725555711957,3.8408,130.19,130.16,3.8413]
[1725555712350,1.3195,130.23,130.15,0.05188957]
[1725555712351,7.73229618,130.21,130.18,3.841]
[1725555712561,20.66,130.22,130.18,3.841]
[1725555712562,20.66,130.22,130.18,0.04944635]
[1725555712846,1.3195,130.23,130.18,0.04944635]
[1725555713552,20.66,130.21,130.18,0.04944635]
[1725555713755,20.66,130.2,130.18,0.04944635]
[1725555713951,22.0818,130.2,130.18,0.04944635]
[1725555715053,20.66,130.18,130.11,5.2293421]
[1725555715451,24.5011,130.18,130.15,3.8418]
[1725555715947,24.5011,130.18,130.15,3.90081086]
[1725555715948,24.551978,130.18,130.15,3.90081086]
[1725555716346,3.891978,130.18,130.15,3.90081086]
[1725555717549,0.050878,130.18,130.15,0.05901086]
[1725555718149,0.050878,130.18,130.17,3.8413]
[1725555718748,1.3195,130.23,130.2,3.8402]
[1725555718749,5.1592,130.23,130.2,3.8402]
[1725555719052,28.29609016,130.24,130.14,20.66]
[1725555719258,0.59813739,130.23,130.21,3.84]
[1725555719460,0.59813739,130.23,130.14,20.66]
[1725555719754,0.59813739,130.23,130.17,0.0515135]
[1725555720055,0.59813739,130.23,130.2,3.8401]
[1725555720256,4.43783739,130.23,130.2,3.89045159]
[1725555720551,3.8397,130.23,130.2,3.89045159]
[1725555721045,3.8401,130.21,130.2,0.05035159]
[1725555721655,20.66,130.22,130.11,5.2293421]
[1725555721954,25.82761052,130.25,130.1,2.7748]
[1725555721955,20.66,130.19,130.1,2.7748]
[1725555722157,5.20265201,130.18,130.1,6.58002105]
[1725555722344,20.66,130.17,130.1,1.3372]
[1725555722544,20.66,130.15,130.05,22.0555]
[1725555722754,3.80159466,130.17,130.09,0.05841413]
[1725555722755,0.05103235,130.11,130.09,0.05841413]
[1725555723054,0.05103235,130.11,130.09,0.05145613]
[1725555723257,0.05103235,130.11,130.09,3.89505613]
[1725555724557,0.05103235,130.11,130.1,3.8433]
[1725555725058,0.05103235,130.11,130.09,0.05145613]
[1725555727054,0.05103235,130.11,130.1,3.8433]
[1725555727255,0.05103235,130.11,130.09,0.05145613]
[1725555727652,3.89423235,130.11,130.09,0.05145613]
[1725555728147,0.05103235,130.11,130.09,0.05145613]
[1725555729257,0.05103235,130.11,130.1,3.8433]
[1725555731163,0.05103235,130.11,130.09,3.89495613]
[1725555731762,0.05103235,130.11,130.1,3.8433]
[1725555732069,1.3132,130.17,130.05,6.65505773]
[1725555732263,1.3132,130.17,130.14,3.842]
[1725555732264,5.1547,130.17,130.14,3.842]
[1725555733059,5.1547,130.17,130.14,3.89778232]
[1725555733456,25.86,130.21,130.14,0.05578232]
[1725555733764,1.3324,130.22,130.14,0.05578232]
[1725555733958,1.3324,130.22,130.18,3.8408]
[1725555733959,3.8402,130.21,130.18,3.8408]
[1725555734167,1.356,130.23,130.17,0.05280738]
[1725555734463,3.76008377,130.23,130.17,0.05280738]
[1725555734659,3.84,130.22,130.19,3.8405]
[1725555734860,3.84,130.22,130.19,3.89687398]
[1725555735258,1.4119,130.24,130.19,0.05637398]
[1725555735459,0.59813112,130.23,130.19,0.05637398]
[1725555736062,3.8399,130.22,130.19,0.05637398]
[1725555736658,3.8395,130.23,130.19,0.05637398]
[1725555736962,1.4119,130.24,130.19,0.05637398]
[1725555738659,3.8397,130.23,130.19,3.89687398]
[1725555739461,1.4119,130.24,130.19,0.05637398]
[1725555739762,251.08,130.32,130.19,0.05637398]
[1725555739965,3.8395,130.24,130.18,3.835279]
[1725555740263,25.86,130.29,130.2,0.05216339]
[1725555740467,25.86,130.29,130.17,25.86]
[1725555740468,3.8389,130.26,130.23,0.05855088]
[1725555740663,25.86,130.29,130.23,0.05855088]
[1725555740866,0.59823463,130.28,130.23,0.05855088]
[1725555742266,3.8388,130.26,130.23,0.05855088]
[1725555742469,25.86,130.29,130.23,0.05855088]
[1725555742669,0.59818931,130.28,130.23,0.05855088]
[1725555743179,3.8382,130.28,130.23,0.05855088]
[1725555743364,30.0841,130.31,130.23,0.05855088]
[1725555743560,3.8385,130.27,130.26,0.05143413]
[1725555745065,30.0841,130.31,130.26,0.05143413]
[1725555745265,0.59824976,130.3,130.26,0.05143413]
[1725555745671,3.8383,130.27,130.26,0.05143413]
[1725555746770,3.8382,130.28,130.26,0.05143413]
[1725555747071,30.0841,130.31,130.26,0.05143413]
[1725555747261,0.59839524,130.3,130.26,0.05143413]
[1725555748172,20.64,130.29,130.26,0.05143413]
[1725555748561,3.8383,130.27,130.26,0.05143413]
[1725555752269,3.8382,130.28,130.26,0.05143413]
[1725555752566,4.2241,130.31,130.26,0.05143413]
[1725555752970,3.86926075,130.32,130.26,0.05143413]
[1725555753176,22.0568,130.35,130.28,0.05138424]
[1725555753369,3.8372,130.31,130.3,0.05666283]
[1725555754577,3.8385,130.27,130.24,3.8392]
[1725555754764,20.64,130.29,130.21,5.31720062]
[1725555754963,3.8385,130.27,130.23,3.8393]
[1725555755165,2.7217,130.3,130.21,25.95720062]
[1725555755573,0.0508896,130.27,130.24,0.04888652]
[1725555755873,0.0508896,130.27,130.26,3.8384]
[1725555756074,0.0508896,130.27,130.24,0.04888652]
[1725555756272,0.0508896,130.27,130.25,3.8387]
[1725555756971,0.0508896,130.27,130.24,0.04888652]
[1725555757368,0.0508896,130.27,130.25,3.8388]
[1725555758598,0.0508896,130.27,130.24,0.04888652]
[1725555758873,0.0508896,130.27,130.25,3.8388]
[1725555759466,0.0508896,130.27,130.24,0.04888652]
[1725555760073,3.8891896,130.27,130.24,3.88788652]
[1725555760568,0.0508896,130.27,130.24,0.04888652]
[1725555760776,3.8387,130.26,130.24,0.04888652]
[1725555760968,0.0508896,130.27,130.24,0.04888652]
[1725555761374,3.8885362,130.27,130.24,0.04888652]
[1725555762375,3.8389,130.25,130.24,0.04888652]
[1725555762871,3.8885362,130.27,130.24,0.04888652]
[1725555762872,3.8387,130.26,130.24,0.04888652]
[1725555763077,0.0508896,130.27,130.24,0.04888652]
[1725555764168,3.8892896,130.27,130.24,0.04888652]
[1725555765074,0.0508896,130.27,130.25,3.8388]
[1725555765277,0.0508896,130.27,130.24,0.04888652]
[1725555765777,3.8893896,130.27,130.24,3.88788652]
[1725555765974,0.0508896,130.27,130.24,0.04888652]
[1725555766376,0.0508896,130.27,130.24,25.87888652]
[1725555766777,0.0508896,130.27,130.25,3.8387]
[1725555767377,0.0508896,130.27,130.24,0.04888652]
[1725555767779,0.0508896,130.27,130.26,3.8386]
[1725555769281,0.0508896,130.27,130.24,0.04888652]
[1725555769585,0.0508896,130.27,130.24,3.83670713]
[1725555769784,0.0508896,130.27,130.26,3.8386]
[1725555774291,3.8373,130.31,130.28,3.8378]
[1725555774585,3.8373,130.31,130.24,29.61782061]
[1725555775082,3.8377,130.3,130.24,29.61782061]
[1725555775285,3.8377,130.3,130.26,0.05729297]
[1725555775485,3.8377,130.3,130.27,3.8383]
[1725555775884,3.8377,130.3,130.26,0.05729297]
[1725555775885,3.8377,130.3,130.28,3.8378]
[1725555776384,6.60237555,130.34,130.28,3.8379]
[1725555776690,0.59860513,130.33,130.3,0.05657885]
[1725555777083,0.59859627,130.32,130.3,0.05657885]
[1725555777283,3.8374,130.31,130.3,0.05657885]
[1725555780480,3.838,130.29,130.24,3.78782061]
[1725555780688,20.65,130.31,130.22,1.3941]
[1725555780881,20.65,130.27,130.18,20.65]
[1725555781185,20.65,130.23,130.14,4.1457]
[1725555781388,1.3452,130.22,130.15,100.68439924]